bitfinex/quotes_BTCUSD_20220218
["timestamp","ask_amount","ask_price","bid_price","bid_amount"]
[1645186172244,0.001,40381.0,40380.0,0.00031474]
[1645186172888,0.001,40381.0,40380.0,0.00131474]
[1645186174090,0.001,40381.0,40380.0,0.00031474]
[1645186174289,0.001,40381.0,40380.0,0.34214554]
[1645186174890,0.001,40381.0,40380.0,0.34314554]
[1645186175691,0.00219099,40381.0,40380.0,0.00131474]
[1645186176192,0.00219099,40381.0,40380.0,0.00031474]
[1645186176838,0.00219099,40381.0,40380.0,0.00131474]
[1645186178242,0.00219099,40381.0,40380.0,0.00031474]
[1645186178842,0.00319099,40381.0,40380.0,0.00031474]
[1645186180094,0.00219099,40381.0,40380.0,0.00031474]
[1645186180891,0.001,40381.0,40380.0,0.00410068]
[1645186181891,0.001,40381.0,40380.0,0.00400068]
[1645186182191,0.001,40381.0,40380.0,0.00200068]
[1645186184942,0.001,40381.0,40380.0,0.00400068]
[1645186186544,0.001,40381.0,40380.0,0.00200068]
[1645186186946,0.001,40381.0,40380.0,0.00400068]
[1645186187146,0.001,40381.0,40380.0,0.34583148]
[1645186187345,0.001,40381.0,40380.0,0.40775748]
[1645186187596,0.001,40381.0,40380.0,0.45775748]
[1645186187789,0.0011,40382.0,40381.0,0.002]
[1645186193058,0.0011,40382.0,40381.0,0.004]
[1645186194260,0.0011,40382.0,40381.0,0.002]
[1645186194959,0.0021,40382.0,40381.0,0.002]
[1645186195999,0.0021,40382.0,40381.0,0.00392631]
[1645186196198,0.0011,40382.0,40381.0,0.00392631]
[1645186196605,0.334453,40382.0,40381.0,0.00392631]
[1645186196799,0.6862018,40382.0,40381.0,0.00392631]
[1645186197000,0.6872018,40382.0,40381.0,0.00392631]
[1645186197500,0.6772838,40382.0,40381.0,0.00392631]
[1645186198199,0.6762838,40382.0,40381.0,0.00392631]
[1645186198599,0.334453,40382.0,40381.0,0.00392631]
[1645186198839,0.6772838,40382.0,40381.0,0.00392631]
[1645186199742,0.6772838,40382.0,40380.0,0.00141884]
[1645186199743,0.8268838,40382.0,40380.0,0.00141884]
[1645186199942,0.333353,40380.0,40364.0,0.19701508]
[1645186200143,0.333353,40377.0,40361.0,0.48413517]
[1645186200345,0.333353,40375.0,40371.0,0.31955298]
[1645186200546,0.1,40377.0,40371.0,0.31955298]
[1645186200547,0.0496,40374.0,40371.0,0.31955298]
[1645186200745,0.1,40377.0,40364.0,0.06194837]
[1645186200943,0.23322329,40375.0,40371.0,0.001]
[1645186201143,0.333353,40373.0,40371.0,0.001]
[1645186201342,0.333353,40376.0,40371.0,0.23561651]
[1645186201543,0.333353,40376.0,40371.0,0.001]
[1645186202144,0.56271901,40376.0,40371.0,0.001]
[1645186202787,0.56271901,40376.0,40369.0,0.26118556]
[1645186202987,0.56271901,40376.0,40371.0,0.001]
[1645186203387,0.56297116,40376.0,40371.0,0.001]
[1645186203786,0.33360515,40376.0,40371.0,0.001]
[1645186204187,0.343274,40376.0,40369.0,0.1]
[1645186204393,0.333353,40374.0,40366.0,0.19701508]
[1645186204588,0.333353,40374.0,40364.0,0.061956]
[1645186204787,0.1,40374.0,40365.0,0.061954]
[1645186204987,0.333353,40373.0,40369.0,0.001]
[1645186205391,0.00036996,40377.0,40369.0,0.001]
[1645186205591,0.00036996,40378.0,40369.0,0.001]
[1645186205788,0.016,40381.0,40370.0,0.061948]
[1645186205789,0.00025215,40373.0,40370.0,0.061948]
[1645186205989,0.00025215,40373.0,40371.0,0.0091]
[1645186206190,0.00025215,40373.0,40372.0,0.58413921]
[1645186206448,0.00036996,40378.0,40372.0,0.63413921]
[1645186207049,0.01536996,40381.0,40372.0,0.83215429]
[1645186207250,0.00036996,40380.0,40373.0,0.507227]
[1645186207448,0.015,40381.0,40380.0,0.23166127]
[1645186207449,0.01536996,40381.0,40380.0,0.23166127]
[1645186207647,0.024918,40381.0,40380.0,0.23166127]
[1645186208046,0.015,40381.0,40380.0,0.54763185]
[1645186208547,0.015,40381.0,40380.0,0.64763185]
[1645186208948,0.015,40381.0,40380.0,0.64863185]
[1645186210198,0.015,40381.0,40380.0,0.64763185]
[1645186213002,0.015,40381.0,40380.0,0.64863185]
[1645186213609,0.01197204,40389.0,40381.0,0.333353]
[1645186213852,0.0119463,40389.0,40382.0,0.395286]
[1645186214048,0.0119463,40389.0,40382.0,0.445286]
[1645186214246,0.0119463,40389.0,40382.0,0.495286]
[1645186214448,0.0119463,40389.0,40382.0,0.433353]
[1645186214648,0.0119463,40389.0,40383.0,0.25600761]
[1645186214851,0.0119463,40389.0,40384.0,0.061921]
[1645186215246,0.0119463,40389.0,40386.0,0.05]
[1645186215447,0.0119463,40389.0,40387.0,0.26681258]
[1645186215646,0.0119463,40389.0,40387.0,0.31681258]
[1645186216047,0.0119463,40389.0,40387.0,0.37872658]
[1645186216547,0.0032,40390.0,40387.0,0.37872658]
[1645186216746,0.0032,40390.0,40387.0,0.12872658]
[1645186216949,0.002,40389.0,40387.0,0.12872658]
[1645186217151,0.00169176,40389.0,40387.0,0.12872658]
[1645186217355,0.00169176,40389.0,40388.0,0.3390835]
[1645186217600,0.001,40390.0,40389.0,0.333353]
[1645186217791,0.00125414,40390.0,40389.0,0.6724365]
[1645186218192,0.00125414,40390.0,40389.0,0.7724365]
[1645186218591,0.001,40390.0,40389.0,0.7724365]
[1645186218791,0.001,40390.0,40389.0,0.1]
[1645186218992,0.001,40390.0,40387.0,0.48765566]
[1645186219193,0.001,40390.0,40388.0,0.333353]
[1645186219391,0.001,40390.0,40389.0,0.3390835]
[1645186219593,0.0249612,40396.0,40389.0,0.3390835]
[1645186219594,0.01331227,40397.0,40390.0,0.333353]
[1645186219792,0.00339727,40397.0,40391.0,0.061913]
[1645186219995,0.00339727,40397.0,40393.0,0.30261286]
[1645186220293,0.00339727,40397.0,40393.0,0.59595911]
[1645186220294,0.00123873,40394.0,40393.0,0.59595911]
[1645186220492,0.00123873,40394.0,40393.0,0.59534442]
[1645186221097,0.00123873,40394.0,40393.0,0.59634442]
[1645186221747,0.00123873,40394.0,40393.0,0.29373156]
[1645186222345,0.00123873,40394.0,40393.0,0.29273156]
[1645186222946,0.00223873,40394.0,40393.0,0.5963551]
[1645186223845,0.00223873,40394.0,40393.0,0.40300885]
[1645186224948,0.00223873,40394.0,40393.0,0.04938531]
[1645186225199,0.00223873,40394.0,40393.0,0.09938531]
[1645186225496,0.00089346,40397.0,40394.0,0.21272656]
[1645186225697,0.00089346,40397.0,40394.0,0.26272656]
[1645186225894,0.00089346,40397.0,40395.0,0.29504384]
[1645186226094,0.00089346,40397.0,40394.0,0.26272656]
[1645186227396,0.01080746,40397.0,40394.0,0.26272656]
[1645186227596,0.00089346,40397.0,40394.0,0.26272656]
[1645186228397,0.00089346,40397.0,40394.0,0.57636555]
[1645186229143,0.333353,40396.0,40394.0,0.57636555]
[1645186229342,0.00089346,40397.0,40394.0,0.57636555]
[1645186229943,0.00089346,40397.0,40394.0,0.36363899]
[1645186230542,0.00089346,40397.0,40394.0,0.05]
[1645186230747,0.00089346,40397.0,40390.0,0.32084008]
[1645186230748,0.33430888,40396.0,40390.0,0.32084008]
[1645186230947,0.33430888,40396.0,40385.0,0.19701508]
[1645186231148,0.33430888,40396.0,40384.0,0.3926]
[1645186231149,0.0098,40395.0,40384.0,0.3926]
[1645186231346,0.34740938,40395.0,40384.0,0.3926]
[1645186231545,0.34740938,40395.0,40385.0,0.25361199]
[1645186232047,0.34740938,40395.0,40386.0,0.061926]
[1645186232246,0.333353,40394.0,40386.0,0.061926]
[1645186232700,0.0098,40395.0,40386.0,0.061926]
[1645186232903,0.333353,40394.0,40386.0,0.061926]
[1645186233100,0.0098,40395.0,40386.0,0.061926]
[1645186233700,0.0098,40395.0,40387.0,0.32025058]
[1645186233899,0.0098,40395.0,40387.0,0.37025058]
[1645186234100,0.0098,40395.0,40389.0,0.06192]
[1645186234500,0.333353,40394.0,40389.0,0.06192]
[1645186235299,0.0999,40394.0,40389.0,0.06192]
[1645186235702,0.00287433,40394.0,40389.0,0.06192]
[1645186236342,0.00287433,40394.0,40387.0,0.05]
[1645186236544,0.00287433,40394.0,40386.0,0.061926]
[1645186236742,0.00287433,40394.0,40387.0,0.05]
[1645186237343,0.00287433,40394.0,40387.0,0.051]
[1645186238245,0.00287433,40394.0,40388.0,0.34546348]
[1645186238544,0.00254207,40394.0,40388.0,0.34546348]
[1645186239044,0.01245707,40394.0,40388.0,0.34546348]
[1645186239243,0.01245707,40394.0,40390.0,0.22859372]
[1645186239244,0.00254207,40394.0,40390.0,0.22859372]
[1645186239843,0.00254207,40394.0,40390.0,0.29023419]
[1645186240293,0.00254207,40394.0,40390.0,0.22859372]
[1645186240493,0.333353,40393.0,40390.0,0.22859372]
[1645186240798,0.00254207,40394.0,40390.0,0.27859372]
[1645186240994,0.00089346,40397.0,40390.0,0.27859372]
[1645186241496,0.00089346,40397.0,40390.0,0.40342072]
[1645186242694,0.00089346,40397.0,40390.0,0.40242072]
[1645186242894,0.01080846,40397.0,40390.0,0.40242072]
[1645186243094,0.00089346,40397.0,40390.0,0.27859372]
[1645186243298,0.00089346,40397.0,40391.0,0.061917]
[1645186243693,0.00126157,40397.0,40391.0,0.061917]
[1645186243944,0.00126157,40397.0,40390.0,0.27859372]
[1645186244143,0.00126157,40397.0,40391.0,0.061917]
[1645186244345,0.00126157,40397.0,40392.0,0.333353]
[1645186244743,0.00126157,40397.0,40393.0,0.333353]
[1645186244944,0.00126157,40397.0,40391.0,0.111917]
[1645186245345,0.00126157,40397.0,40393.0,0.002]
[1645186245548,0.00125758,40398.0,40394.0,0.533353]
[1645186245853,0.0007688,40397.0,40395.0,0.1]
[1645186246047,0.0007688,40397.0,40396.0,0.333353]
[1645186247448,0.0007688,40397.0,40396.0,0.335353]
[1645186247700,0.42,40400.0,40397.0,0.0015376]
[1645186247898,0.00025157,40399.0,40398.0,0.58546997]
[1645186248100,0.00025157,40399.0,40398.0,0.97307935]
[1645186248501,0.00635109,40406.0,40398.0,0.63972635]
[1645186248797,0.005345,40406.0,40398.0,0.68972635]
[1645186248998,0.005345,40406.0,40399.0,0.333353]
[1645186248999,0.004245,40406.0,40399.0,0.333353]
[1645186249201,0.004245,40406.0,40401.0,0.061895]
[1645186249400,0.004245,40406.0,40402.0,0.31785475]
[1645186249801,0.004245,40406.0,40404.0,0.20970176]
[1645186250000,0.0024664,40407.0,40404.0,0.20970176]
[1645186250201,0.00016781,40406.0,40403.0,0.05]
[1645186250600,0.00016781,40406.0,40401.0,0.1]
[1645186250802,0.01007981,40406.0,40401.0,0.05]
[1645186251007,0.00016781,40406.0,40401.0,0.05]
[1645186251202,0.0951187,40413.0,40408.0,0.29149728]
[1645186251475,0.0951187,40413.0,40408.0,0.50925678]
[1645186251476,0.00247687,40409.0,40408.0,0.50925678]
[1645186251676,0.33582987,40409.0,40408.0,0.50925678]
[1645186252075,0.33582987,40409.0,40408.0,0.2177595]
[1645186252276,0.00106,40414.0,40413.0,10.50612152]
[1645186252475,0.19384218,40414.0,40413.0,10.50612152]
[1645186253076,0.24384218,40414.0,40413.0,10.50612152]
[1645186253477,0.24384218,40414.0,40409.0,0.32726659]
[1645186253681,0.24384218,40414.0,40406.0,0.20896089]
[1645186253682,0.01221098,40410.0,40406.0,0.20896089]
[1645186253878,0.333161,40409.0,40406.0,0.20896089]
[1645186254479,0.433161,40409.0,40406.0,0.20896089]
[1645186254680,0.009912,40409.0,40407.0,0.66960723]
[1645186254884,0.00222907,40408.0,40406.0,0.25896089]
[1645186255110,0.00122761,40414.0,40407.0,0.0599]
[1645186255299,0.00222902,40410.0,40407.0,0.0099]
[1645186255498,0.00222902,40408.0,40407.0,0.0099]
[1645186255700,0.00222902,40408.0,40407.0,0.30698621]
[1645186255899,0.00222902,40408.0,40407.0,0.35698621]
[1645186256305,0.00222902,40408.0,40407.0,0.55271282]
[1645186256500,0.00131753,40414.0,40413.0,10.5038925]
[1645186256703,0.25626391,40414.0,40413.0,10.5038925]
[1645186256900,0.19443755,40414.0,40413.0,10.5038925]
[1645186257101,0.191951,40414.0,40413.0,10.5038925]
[1645186257300,0.19306551,40414.0,40408.0,0.0002576]
[1645186257501,0.00111451,40410.0,40408.0,0.0002576]
[1645186257703,0.19200551,40409.0,40408.0,0.0002576]
[1645186258306,0.19200551,40409.0,40400.0,0.123789]
[1645186258604,0.06191178,40407.0,40406.0,0.00025759]
[1645186258853,0.25280278,40407.0,40406.0,0.00025759]
[1645186259551,0.25280278,40407.0,40398.0,0.33842122]
[1645186259848,0.2734298,40409.0,40404.0,0.00025759]
[1645186259849,0.190891,40406.0,40404.0,0.00025759]
[1645186260448,0.185891,40406.0,40404.0,0.00025759]
[1645186260646,0.185891,40406.0,40401.0,0.27202115]
[1645186260848,0.185891,40406.0,40403.0,0.00025759]
[1645186261050,0.185887,40409.0,40403.0,0.00025759]
[1645186261250,0.00263399,40410.0,40403.0,0.00025759]
[1645186261453,0.00263399,40410.0,40403.0,0.00125759]
[1645186261454,0.185887,40409.0,40403.0,0.00125759]
[1645186261852,0.185887,40409.0,40404.0,0.2065413]
[1645186262050,0.00263399,40410.0,40404.0,0.2065413]
[1645186262249,0.00263399,40410.0,40405.0,0.0096]
[1645186262450,0.185887,40409.0,40405.0,0.0096]
[1645186262703,0.00263399,40410.0,40405.0,0.0096]
[1645186263402,0.00263399,40410.0,40405.0,0.01085772]
[1645186264302,0.00263399,40410.0,40405.0,0.0106]
[1645186264504,0.00263399,40410.0,40405.0,0.01085772]
[1645186264701,0.00131767,40414.0,40405.0,0.00985772]
[1645186264702,0.185887,40413.0,40405.0,0.00985772]
[1645186265311,0.1,40409.0,40405.0,5.772e-05]
[1645186265507,0.307404,40408.0,40400.0,0.001]
[1645186265706,0.12383446,40407.0,40400.0,0.001]
[1645186265905,0.235487,40406.0,40400.0,0.001]
[1645186266104,0.0496,40405.0,40400.0,0.001]
[1645186266348,0.69257022,40404.0,40400.0,0.001]
[1645186266747,0.79257022,40404.0,40397.0,0.0015376]
[1645186267146,0.69257022,40404.0,40397.0,0.0015376]
[1645186267346,0.79257022,40404.0,40397.0,0.0015376]
[1645186267544,1.13099144,40404.0,40397.0,0.0025376]
[1645186267748,0.93633664,40404.0,40397.0,0.0025376]
[1645186267947,0.93633664,40404.0,40397.0,0.00241567]
[1645186268248,0.93633664,40404.0,40398.0,0.00025774]
[1645186268845,1.15279411,40404.0,40398.0,0.00025774]
[1645186269046,1.15279411,40404.0,40397.0,0.00241567]
[1645186269250,0.185887,40399.0,40397.0,0.00241567]
[1645186269449,0.4024766,40398.0,40397.0,0.00241567]
[1645186269647,0.5883636,40398.0,40397.0,0.00241567]
[1645186269849,0.6883636,40398.0,40397.0,0.00241567]
[1645186270304,0.6982776,40398.0,40397.0,0.00241567]
[1645186270504,0.6982776,40398.0,40397.0,5.67e-06]
[1645186270701,0.6982776,40398.0,40395.0,0.00025775]
[1645186270902,0.185887,40397.0,40395.0,0.00025775]
[1645186271203,0.185887,40397.0,40395.0,7.75e-06]
[1645186271204,0.52430822,40396.0,40395.0,7.75e-06]
[1645186271401,0.67390822,40396.0,40395.0,7.75e-06]
[1645186271602,0.67390822,40396.0,40385.0,0.0094]
[1645186271603,0.06193552,40393.0,40385.0,0.0094]
[1645186271821,0.2654003,40390.0,40385.0,0.0094]
[1645186272001,0.185887,40389.0,40385.0,0.0094]
[1645186272201,0.185887,40389.0,40375.0,0.4731]
[1645186272403,0.2654003,40390.0,40379.0,0.0094]
[1645186272802,0.11153594,40389.0,40379.0,0.0094]
[1645186273004,0.185887,40388.0,40382.0,9.075e-05]
[1645186273202,0.0496,40388.0,40385.0,0.28695496]
[1645186273403,0.0496,40388.0,40382.0,9.075e-05]
[1645186273843,0.0496,40388.0,40379.0,0.0114]
[1645186274044,0.0496,40388.0,40383.0,9.075e-05]
[1645186274246,0.0496,40388.0,40384.0,0.23323872]
[1645186274645,0.0496,40388.0,40386.0,0.29263397]
[1645186275345,0.0496,40388.0,40386.0,0.34263397]
[1645186275545,0.0496,40388.0,40386.0,0.34363397]
[1645186276545,0.185887,40387.0,40386.0,0.34363397]
[1645186276745,0.185887,40391.0,40386.0,0.34263397]
[1645186277608,0.185887,40391.0,40386.0,0.001]
[1645186277898,0.185887,40391.0,40386.0,0.00125777]
[1645186278698,0.185887,40391.0,40386.0,0.001]
[1645186278898,0.185887,40391.0,40386.0,0.00025777]
[1645186279507,0.185887,40391.0,40386.0,0.00125777]
[1645186279700,0.185887,40391.0,40386.0,0.29128734]
[1645186279901,0.185887,40391.0,40386.0,0.29102957]
[1645186280102,0.0587,40393.0,40386.0,0.29128734]
[1645186280304,0.185887,40392.0,40386.0,0.29128734]
[1645186280702,0.185887,40392.0,40388.0,0.00151184]
[1645186281348,0.185887,40392.0,40388.0,0.0017696]
[1645186282250,0.185887,40392.0,40388.0,0.00151184]
[1645186282448,0.185887,40392.0,40388.0,0.0017696]
[1645186282649,0.33842122,40391.0,40388.0,0.0017696]
[1645186282849,0.185887,40390.0,40388.0,0.0017696]
[1645186283449,0.185887,40390.0,40388.0,0.00151184]
[1645186284850,0.1587,40393.0,40389.0,0.28867301]
[1645186284851,0.0587,40393.0,40389.0,0.28867301]
[1645186285105,0.185887,40392.0,40389.0,0.28867301]
[1645186285802,0.185887,40392.0,40388.0,0.00151184]
[1645186286000,0.185887,40392.0,40390.0,0.00303115]
[1645186286203,0.185887,40392.0,40391.0,0.20215536]
[1645186288701,0.185457,40392.0,40391.0,0.20215536]
[1645186289144,0.185457,40392.0,40390.0,0.00303115]
[1645186290755,0.185457,40392.0,40385.0,0.21571106]
[1645186290756,0.52618527,40392.0,40385.0,0.21571106]
[1645186290949,0.52618527,40392.0,40389.0,0.00025776]
[1645186291950,0.52618527,40392.0,40381.0,0.21442539]
[1645186292150,0.52618527,40392.0,40388.0,0.00025776]
[1645186293198,0.52618527,40392.0,40385.0,0.30981636]
[1645186293497,0.52618527,40392.0,40388.0,0.00025776]
[1645186294399,0.52618527,40392.0,40388.0,0.001]
[1645186294598,0.18776405,40392.0,40388.0,0.00125776]
[1645186295597,0.18776405,40392.0,40386.0,0.05]
[1645186295799,0.18776405,40392.0,40388.0,0.00025776]
[1645186296448,0.18876405,40392.0,40388.0,0.00025776]
[1645186296648,0.18876405,40392.0,40383.0,0.001]
[1645186296850,0.18876405,40392.0,40388.0,0.00025776]
[1645186297556,0.18876405,40392.0,40388.0,0.34805679]
[1645186297751,0.18776405,40392.0,40388.0,0.00025776]
[1645186298050,0.00230705,40392.0,40388.0,0.00025776]
[1645186298249,0.185438,40391.0,40388.0,0.00025776]
[1645186298449,0.185438,40391.0,40388.0,0.00125776]
[1645186299053,0.00230705,40392.0,40391.0,0.55631399]
[1645186299352,0.18774505,40392.0,40391.0,0.55631399]
[1645186300398,0.18874505,40392.0,40391.0,0.55631399]
[1645186300602,0.186438,40392.0,40391.0,0.55631399]
[1645186301700,0.185438,40392.0,40391.0,0.55631399]
[1645186304364,0.186438,40392.0,40391.0,0.55631399]
[1645186305665,0.185438,40392.0,40391.0,0.55934321]
[1645186306467,0.186438,40392.0,40391.0,0.55934321]
[1645186307699,0.185438,40392.0,40391.0,0.55934321]
[1645186308498,0.164438,40392.0,40391.0,0.55934321]
[1645186309700,0.163438,40392.0,40391.0,0.55934321]
[1645186310702,0.163438,40392.0,40391.0,0.76019292]
[1645186311200,0.163438,40392.0,40391.0,0.55940738]
[1645186312050,0.163438,40392.0,40391.0,0.75117801]
[1645186312450,0.164438,40392.0,40391.0,0.75117801]
[1645186313655,0.22384875,40399.0,40391.0,1.06670214]
[1645186313856,0.0099,40399.0,40392.0,0.333282]
[1645186314055,0.0099,40399.0,40392.0,0.0093]
[1645186314453,0.0099,40399.0,40392.0,0.0103]
[1645186314954,0.0099,40399.0,40393.0,0.0002405]
[1645186315403,0.0068296,40399.0,40393.0,0.0002405]
[1645186315800,0.0068296,40399.0,40398.0,0.26486655]
[1645186316002,0.00036627,40402.0,40398.0,0.26486655]
[1645186316201,0.06191222,40403.0,40398.0,0.26486655]
[1645186316401,0.06191222,40403.0,40399.0,0.30064939]
[1645186316402,0.163443,40401.0,40399.0,0.30064939]
[1645186316601,0.163443,40400.0,40399.0,0.30064939]
[1645186316801,0.163443,40401.0,40398.0,0.26586655]
[1645186317602,1.99008659,40400.0,40398.0,0.001]
[1645186317807,1.99008659,40400.0,40396.0,0.35011775]
[1645186317808,0.22536154,40399.0,40396.0,0.35011775]
[1645186318004,0.06191854,40399.0,40396.0,0.35011775]
[1645186318404,0.06291854,40399.0,40396.0,0.35011775]
[1645186318604,0.163443,40398.0,40396.0,0.35011775]
[1645186319050,0.06291854,40399.0,40396.0,0.35011775]
[1645186319051,0.001,40399.0,40396.0,0.35011775]
[1645186319248,0.163443,40398.0,40396.0,0.35011775]
[1645186319848,0.163443,40401.0,40396.0,0.35011775]
[1645186320047,0.163443,40402.0,40396.0,0.35011775]
[1645186320256,0.00036627,40402.0,40397.0,0.33695278]
[1645186320456,0.00020318,40415.0,40396.0,0.51202375]
[1645186320660,0.3029537,40423.0,40396.0,0.51202375]
[1645186320661,0.00075735,40401.0,40399.0,1.94296872]
[1645186320859,0.0011,40424.0,40400.0,2.59997482]
[1645186321055,0.0011,40424.0,40401.0,0.94080391]
[1645186321249,0.0011,40424.0,40407.0,0.05]
[1645186321453,0.06188565,40421.0,40408.0,0.0099]
[1645186321851,0.06188565,40421.0,40409.0,0.30661092]
[1645186321852,0.23409418,40413.0,40409.0,0.30661092]
[1645186322050,0.22688957,40419.0,40409.0,0.40661092]
[1645186322051,0.16294872,40418.0,40409.0,0.40661092]
[1645186322251,0.162973,40418.0,40409.0,0.35661092]
[1645186322450,0.22688957,40419.0,40409.0,0.001]
[1645186322451,0.162973,40417.0,40409.0,0.001]
[1645186322707,0.162973,40415.0,40409.0,0.001]
[1645186322909,0.15743226,40415.0,40409.0,0.001]
[1645186323612,0.20743226,40415.0,40409.0,0.001]
[1645186323807,0.22122671,40410.0,40403.0,0.0093]
[1645186324007,0.22122671,40410.0,40404.0,0.061896]
[1645186324407,0.22122671,40410.0,40405.0,0.29680896]
[1645186324608,0.157427,40409.0,40405.0,0.29706682]
[1645186324810,0.22122671,40410.0,40405.0,0.00025786]
[1645186325610,0.22122671,40410.0,40403.0,0.0093]
[1645186325911,0.22122671,40410.0,40405.0,0.00025786]
[1645186326351,0.156931,40409.0,40405.0,0.00025786]
[1645186326754,0.156931,40409.0,40403.0,0.0093]
[1645186326953,0.156931,40409.0,40405.0,0.00025786]
[1645186327153,0.206531,40409.0,40405.0,0.00025786]
[1645186327350,0.20603625,40409.0,40405.0,0.00025786]
[1645186327551,0.0092,40408.0,40405.0,0.00025786]
[1645186327752,0.206035,40407.0,40405.0,0.00025786]
[1645186327953,0.201035,40407.0,40399.0,0.329]
[1645186328155,0.151431,40406.0,40404.0,0.00025767]
[1645186328354,0.0506,40407.0,40404.0,0.00025767]
[1645186329152,0.0506,40407.0,40401.0,0.29828659]
[1645186329353,0.0506,40407.0,40403.0,0.00024046]
[1645186329753,0.0496,40407.0,40403.0,0.00024046]
[1645186330303,0.0092,40408.0,40402.0,0.32985046]
[1645186330503,0.1,40410.0,40403.0,0.00124046]
[1645186330706,0.1,40410.0,40407.0,0.00138402]
[1645186330906,0.151431,40409.0,40407.0,0.00138402]
[1645186331505,0.35144597,40409.0,40407.0,0.00138402]
[1645186331905,0.151431,40409.0,40407.0,0.00138402]
[1645186332505,0.151431,40409.0,40407.0,0.00238402]
[1645186333705,0.151431,40409.0,40407.0,0.00138402]
[1645186334552,0.151431,40409.0,40407.0,0.00238402]
[1645186335856,0.151431,40409.0,40408.0,0.00133132]
[1645186336463,0.152431,40409.0,40408.0,0.00133132]
[1645186337060,0.001,40409.0,40408.0,0.00133132]
[1645186337609,0.2132,40418.0,40408.0,0.00133132]
[1645186337802,0.15158181,40415.0,40408.0,0.00133132]
[1645186338102,0.151431,40413.0,40408.0,0.00133132]
[1645186338503,0.23239849,40414.0,40408.0,0.00233132]
[1645186338703,0.151431,40413.0,40408.0,0.00233132]
[1645186339111,0.151431,40413.0,40409.0,0.00024239]
[1645186340104,0.151431,40413.0,40408.0,0.00133132]
[1645186340306,0.151431,40413.0,40409.0,0.00024239]
[1645186340506,0.152431,40413.0,40409.0,0.00024239]
[1645186341208,0.152431,40413.0,40408.0,0.00278336]
[1645186341449,0.152431,40413.0,40409.0,0.00024239]
[1645186342449,0.152431,40413.0,40408.0,0.00278336]
[1645186342649,0.152431,40413.0,40409.0,0.00024239]
[1645186343552,0.152431,40413.0,40408.0,0.00278336]
[1645186343751,0.151431,40413.0,40409.0,0.00024239]
[1645186344352,0.48128146,40413.0,40409.0,0.00024239]
[1645186344551,0.48128146,40413.0,40409.0,0.00124239]
[1645186344750,0.48128146,40413.0,40409.0,0.001]
[1645186344951,0.00862554,40410.0,40409.0,0.00124239]
[1645186345202,0.16005654,40410.0,40409.0,0.00124239]
[1645186345802,0.16005654,40410.0,40409.0,0.00157342]
[1645186346006,0.16005654,40410.0,40409.0,0.00133103]
[1645186346604,0.16105654,40410.0,40409.0,0.00133103]
[1645186347803,0.16005654,40410.0,40409.0,0.00133103]
[1645186348505,0.16005654,40410.0,40409.0,0.00233103]
[1645186349553,0.489907,40410.0,40409.0,0.00233103]
[1645186349752,0.489907,40410.0,40409.0,0.00133103]
[1645186349753,0.539507,40410.0,40409.0,0.00133103]
[1645186350551,0.540507,40410.0,40409.0,0.00133103]
[1645186350751,0.540507,40410.0,40407.0,0.00024239]
[1645186350752,0.540507,40410.0,40402.0,0.0097]
[1645186350950,0.540507,40410.0,40402.0,0.00801333]
[1645186350951,0.00862554,40403.0,40402.0,0.00801333]
[1645186351350,0.151431,40408.0,40403.0,0.01725107]
[1645186351551,0.00431277,40407.0,40403.0,0.01725107]
[1645186351751,0.00431277,40405.0,40403.0,0.01725107]
[1645186352150,0.00431277,40405.0,40403.0,0.01749347]
[1645186353201,0.00431277,40405.0,40403.0,0.01725107]
[1645186353602,0.15358739,40412.0,40403.0,0.01725107]
[1645186354202,0.001,40410.0,40403.0,0.01925107]
[1645186354403,0.00215639,40406.0,40403.0,0.01925107]
[1645186354606,0.00215639,40406.0,40405.0,0.0002424]
[1645186355003,0.02224945,40406.0,40405.0,0.0002424]
[1645186355406,0.17368045,40406.0,40405.0,0.0002424]
[1645186355705,0.17368045,40406.0,40403.0,0.01725107]
[1645186355908,0.02224945,40406.0,40403.0,0.01749347]
[1645186356549,0.02224945,40406.0,40403.0,0.01949347]
[1645186356850,0.02224945,40406.0,40403.0,0.01925107]
[1645186357449,0.19483634,40405.0,40403.0,0.01925107]
[1645186357650,0.02224945,40404.0,40403.0,0.01925107]
[1645186357849,0.02224945,40404.0,40403.0,0.01725107]
[1645186358452,0.02224945,40404.0,40403.0,0.01825107]
[1645186360497,0.02324945,40404.0,40403.0,0.01725107]
[1645186360699,0.02324945,40404.0,40403.0,0.01858611]
[1645186361302,0.50333787,40404.0,40403.0,0.01858611]
[1645186361499,0.17468045,40404.0,40403.0,0.01858611]
[1645186361701,1.8700358,40404.0,40403.0,0.01858611]
[1645186361899,1.8690358,40404.0,40403.0,0.01858611]
[1645186362101,0.17368045,40404.0,40403.0,0.01858611]
[1645186364253,0.02224945,40408.0,40403.0,0.01858611]
[1645186364451,0.02424945,40404.0,40403.0,0.01858611]
[1645186364854,0.002,40404.0,40403.0,0.01858611]
[1645186365751,0.33355543,40409.0,40403.0,0.01858611]
[1645186365952,0.08,40405.0,40403.0,0.01997312]
[1645186366350,0.231431,40404.0,40403.0,0.01997312]
[1645186368002,0.08,40404.0,40403.0,0.01997312]
[1645186368605,0.083,40404.0,40403.0,0.01997312]
[1645186369707,0.08,40404.0,40403.0,0.01997312]
[1645186370110,0.231431,40404.0,40403.0,0.01997312]
[1645186370505,0.081,40404.0,40403.0,0.01997312]
[1645186370707,0.232431,40404.0,40403.0,0.01997312]
[1645186371754,0.231431,40404.0,40403.0,0.01997312]
[1645186375123,0.08,40404.0,40403.0,0.01997312]
[1645186375317,0.231431,40404.0,40403.0,0.01989713]
[1645186375514,0.08,40404.0,40403.0,0.01989713]
[1645186376114,0.231431,40404.0,40403.0,0.01989713]
[1645186377317,0.08,40404.0,40403.0,0.01989713]
[1645186377517,0.231431,40404.0,40403.0,0.01989713]
[1645186377716,0.08,40404.0,40403.0,0.01989713]
[1645186378617,0.231431,40404.0,40403.0,0.01989713]
[1645186380653,0.231431,40404.0,40403.0,0.01725107]
[1645186386004,0.226431,40404.0,40403.0,0.01725107]
[1645186387359,0.08,40404.0,40403.0,0.01725107]
[1645186387559,0.226432,40404.0,40403.0,0.01725107]
[1645186389360,0.08,40404.0,40403.0,0.01725107]
[1645186390605,0.083,40404.0,40403.0,0.01725107]
[1645186391102,0.083,40404.0,40403.0,0.0213274]
[1645186391905,0.08,40404.0,40403.0,0.0213274]
[1645186392105,0.10026262,40409.0,40404.0,0.15999999]